bitfinex/quotes_SOLUSD_20250802
["timestamp","ask_amount","ask_price","bid_price","bid_amount"]
[1754135375497,4.51013985,164.97,164.96,6.06771748]
[1754135375794,46.39013985,164.97,164.96,11.30771748]
[1754135376293,46.39013985,164.97,164.96,6.02]
[1754135376477,72.39013985,164.97,164.96,11.30771748]
[1754135376877,72.39013985,164.97,164.96,6.02]
[1754135377099,72.39013985,164.97,164.96,11.30771748]
[1754135377522,3.79013985,164.97,164.96,16.59543496]
[1754135377810,42.62,165.0,164.99,5.24]
[1754135378103,42.62,165.01,165.0,5.24]
[1754135378307,42.62,165.01,165.0,10.52771748]
[1754135378482,68.62,165.01,165.0,10.52771748]
[1754135378680,42.62,165.01,165.0,10.52771748]
[1754135379577,68.62,165.01,165.0,10.52771748]
[1754135380187,85.40468397,165.01,165.0,5.24]
[1754135380512,85.40468397,165.01,165.0,10.52771748]
[1754135387111,86.11468397,165.01,165.0,5.24]
[1754135387615,90.64704147,165.01,165.0,5.24]
[1754135387981,63.93704147,165.01,165.0,5.24]
[1754135389481,63.93807666,165.01,165.0,5.24]
[1754135391410,64.64807666,165.01,165.0,5.24]
[1754135392207,64.67807666,165.01,165.0,5.24]
[1754135394311,162.88468397,165.0,164.99,5.3]
[1754135394609,168.12807666,165.0,164.99,5.3]
[1754135395005,177.49832747,165.0,164.99,0.06]
[1754135397012,37.45893353,165.0,164.99,0.06]
[1754135397612,42.78468397,164.98,164.97,0.06]
[1754135397809,99.24832747,164.98,164.97,0.06]
[1754135398118,99.95832747,164.98,164.97,0.06]
[1754135398326,103.12370883,164.98,164.97,0.06]
[1754135399820,97.12599135,164.98,164.97,0.06]
[1754135400021,34.61592602,164.98,164.97,10.58771748]
[1754135400227,73.07339269,164.98,164.97,10.58771748]
[1754135400589,4.53339269,164.98,164.97,10.58771748]
[1754135405988,4.53414643,164.98,164.97,10.58771748]
[1754135406726,4.53414643,164.98,164.97,5.3]
[1754135406920,30.53414643,164.98,164.97,21.17543548]
[1754135407094,30.53414643,164.98,164.97,10.58771748]
[1754135416538,31.19414643,164.98,164.97,5.3]
[1754135416729,90.5188304,164.98,164.97,5.3]
[1754135416951,73.07414643,164.98,164.97,10.58771748]
[1754135417930,73.73414643,164.98,164.97,10.58771748]
[1754135420115,73.73414643,164.98,164.97,5.3]
[1754135420116,90.5188304,164.98,164.97,5.3]
[1754135420618,90.52859957,164.98,164.97,5.3]
[1754135421015,90.52859957,164.98,164.97,10.58771748]
[1754135424519,90.52859957,164.98,164.97,5.3]
[1754135424723,94.61852525,164.98,164.97,5.3]
[1754135425544,34.63384128,164.98,164.97,10.58771748]
[1754135425741,77.17384128,164.98,164.97,10.58771748]
[1754135425932,77.17378,164.98,164.97,10.58771748]
[1754135426449,26.0,164.98,164.97,10.58771748]
[1754135426620,30.54441956,164.98,164.97,10.58771748]
[1754135427249,30.54441956,164.98,164.97,5.3]
[1754135427451,30.54441956,164.98,164.97,10.58771748]
[1754135428350,52.07917826,164.98,164.97,5.3]
[1754135429259,198.17917826,164.98,164.97,5.3]
[1754135429749,198.17917826,164.98,164.97,0.06]
[1754135429927,198.17917826,164.98,164.97,5.3]
[1754135431527,198.17917826,164.98,164.97,0.06]
[1754135431741,198.17917826,164.98,164.97,5.3]
[1754135433143,198.17917826,164.98,164.97,0.06]
[1754135433346,203.46689574,164.98,164.97,0.06]
[1754135433547,57.36689574,164.98,164.97,0.06]
[1754135434451,60.5321278,164.98,164.97,0.06]
[1754135436870,16.78468397,164.97,164.96,0.06]
[1754135437050,73.92689574,164.97,164.96,0.06]
[1754135437246,79.03307175,164.97,164.96,0.06]
[1754135437447,73.92689574,164.97,164.96,0.06]
[1754135437654,79.98860392,164.97,164.96,0.06]
[1754135438068,85.09477993,164.97,164.96,0.06]
[1754135439241,28.1344771,164.96,164.95,0.06]
[1754135439442,37.44897139,164.96,164.95,0.06]
[1754135439745,42.73668887,164.96,164.95,0.06]
[1754135439939,38.19226931,164.96,164.95,0.06]
[1754135440242,42.78468397,164.94,164.93,0.2]
[1754135440446,73.2424233,164.94,164.93,0.2]
[1754135440679,73.9224233,164.94,164.93,0.2]
[1754135441684,79.98523401,164.94,164.93,0.2]
[1754135442972,85.0881666,164.94,164.93,0.2]
[1754135443177,79.98523401,164.94,164.92,0.06]
[1754135443379,36.4801615,164.93,164.92,0.06]
[1754135443557,42.54333981,164.93,164.91,0.06]
[1754135443757,42.54333981,164.93,164.87,0.06]
[1754135443758,16.78468397,164.88,164.87,0.06]
[1754135443977,95.15234857,164.88,164.87,0.06]
[1754135444172,95.83234857,164.88,164.87,0.06]
[1754135444687,99.90551897,164.88,164.87,0.06]
[1754135445183,105.19323645,164.88,164.87,0.06]
[1754135445553,111.25825343,164.88,164.87,0.06]
[1754135446950,111.23815408,164.88,164.87,0.06]
[1754135447208,16.78468397,164.87,164.85,0.06]
[1754135447354,69.15224922,164.86,164.85,0.06]
[1754135447556,79.96234965,164.86,164.85,0.06]
[1754135448274,42.78468397,164.82,164.79,5.24]
[1754135448586,16.78468397,164.79,164.78,5.24]
[1754135448792,63.86453174,164.79,164.78,5.24]
[1754135449162,64.63240145,164.79,164.78,5.24]
[1754135449885,59.34468397,164.79,164.78,5.24]
[1754135450270,16.78468397,164.8,164.79,5.24]
[1754135450476,59.34468397,164.8,164.79,5.24]
[1754135453173,59.34468397,164.8,164.78,5.24]
[1754135453493,59.34468397,164.8,164.79,5.24]
[1754135453699,59.34468397,164.8,164.78,5.24]
[1754135453882,59.34468397,164.8,164.79,5.24]
[1754135454300,0.68,164.85,164.79,5.28771748]
[1754135454473,0.68,164.85,164.81,5.24]
[1754135454474,42.78468397,164.82,164.81,5.24]
[1754135454674,89.84291512,164.82,164.81,5.24]
[1754135456689,47.28291512,164.82,164.81,5.24]
[1754135456871,89.84291512,164.82,164.81,5.24]
[1754135460004,3.16728301,164.84,164.81,10.52771748]
[1754135460200,3.16728301,164.84,164.83,10.52771748]
[1754135460389,16.78468397,164.87,164.86,5.24]
[1754135460599,63.83940026,164.87,164.86,5.24]
[1754135461123,63.83940026,164.87,164.86,10.52771748]
[1754135462098,47.05471629,164.87,164.86,10.52771748]
[1754135462607,73.05471629,164.87,164.86,10.52771748]
[1754135463703,73.0566783,164.87,164.86,10.52771748]
[1754135466521,73.06001877,164.87,164.86,10.52771748]
[1754135467888,68.56,164.87,164.86,10.52771748]
[1754135470199,68.56,164.87,164.86,5.24]
[1754135470401,68.56,164.87,164.86,10.52771748]
[1754135471216,214.66,164.87,164.86,10.52771748]
[1754135472323,219.16843774,164.87,164.86,10.52771748]
[1754135472526,193.82895302,164.87,164.86,10.52771748]
[1754135473816,193.16895302,164.87,164.86,10.52771748]
[1754135476288,193.82895302,164.87,164.86,10.52771748]
[1754135477515,193.16895302,164.87,164.86,10.52771748]
[1754135478284,193.82895302,164.87,164.86,10.52771748]
[1754135481298,193.84728215,164.87,164.86,10.52771748]
[1754135482413,193.18728215,164.87,164.86,10.52771748]
[1754135482621,193.18728215,164.87,164.86,5.24]
[1754135482800,193.18728215,164.87,164.86,10.52771748]
[1754135484822,4.52728215,164.87,164.86,10.52771748]
[1754135485027,30.52728215,164.87,164.86,10.52771748]
[1754135485819,4.52728215,164.87,164.86,15.81543496]
[1754135486026,0.03,164.88,164.87,5.24]
[1754135486226,0.03,164.88,164.87,15.81543496]
[1754135486424,4.55969814,164.88,164.87,10.52771748]
[1754135488232,0.03,164.88,164.87,10.52771748]
[1754135488933,4.55768784,164.88,164.87,10.52771748]
[1754135489352,0.03,164.88,164.87,10.52771748]
[1754135490027,0.22,164.9,164.87,10.52771748]
[1754135490243,4.52695789,164.89,164.87,5.24]
[1754135490441,4.52695789,164.89,164.88,5.24]
[1754135490442,30.52695789,164.89,164.88,5.24]
[1754135491055,89.85164186,164.89,164.88,5.24]
[1754135491357,89.85164186,164.89,164.88,10.52771748]
[1754135491853,73.06695789,164.89,164.88,10.52771748]
[1754135492053,163.56468397,164.93,164.88,16.25543496]
[1754135492261,4.52630514,164.92,164.91,5.24]
[1754135492431,47.06630514,164.92,164.91,10.52771748]
[1754135493724,4.52630514,164.92,164.91,10.52771748]
[1754135494266,5.20630514,164.92,164.91,10.52771748]
[1754135495720,4.52630514,164.92,164.91,10.52771748]
[1754135497250,5.20630514,164.92,164.91,10.52771748]
[1754135499232,21.99098911,164.92,164.91,10.52771748]
[1754135500266,47.99098911,164.92,164.91,10.52771748]
[1754135502463,48.02098911,164.92,164.91,10.52771748]
[1754135502965,48.02098911,164.92,164.91,5.24]
[1754135504046,22.02098911,164.92,164.91,5.24]
[1754135504669,42.78468397,164.91,164.9,5.24]
[1754135504831,89.83098911,164.91,164.89,5.24]
[1754135505158,21.99098911,164.9,164.89,5.24]
[1754135506252,42.78468397,164.89,164.88,5.3]
[1754135506569,69.79870659,164.89,164.88,5.3]
[1754135506751,73.88418398,164.89,164.88,0.06]
[1754135509539,68.5964665,164.89,164.88,0.06]
[1754135509739,73.88418398,164.89,164.88,0.06]
[1754135510462,68.5964665,164.89,164.88,0.06]
[1754135510640,68.61024609,164.89,164.88,5.3]
[1754135511056,73.89796357,164.89,164.88,5.3]
[1754135511555,73.89796357,164.89,164.88,0.06]
[1754135514070,83.12725422,164.89,164.88,0.06]
[1754135514844,77.06260506,164.89,164.88,0.06]
[1754135518975,71.77488758,164.89,164.88,0.06]
[1754135519186,77.06260506,164.89,164.88,0.06]
[1754135520243,28.57488758,164.89,164.88,0.06]
[1754135520468,71.11488758,164.89,164.88,0.06]
[1754135521168,71.82488758,164.89,164.88,0.06]
[1754135521349,71.82110223,164.89,164.88,0.06]
[1754135521671,77.10881971,164.89,164.88,0.06]
[1754135522646,71.11110223,164.89,164.88,0.06]
[1754135523060,54.32641826,164.89,164.88,0.06]
[1754135523260,50.24094087,164.89,164.88,5.74]
[1754135523448,47.07629938,164.89,164.88,11.02771748]
[1754135524059,4.53629938,164.89,164.88,11.02771748]
[1754135524850,4.53629938,164.89,164.88,16.31543496]
[1754135525074,4.53629938,164.89,164.88,11.02771748]
[1754135525676,4.53629938,164.89,164.88,16.31543496]
[1754135526868,0.03,164.9,164.88,16.31543496]
[1754135527095,0.03,164.9,164.89,5.72771748]
[1754135527411,4.56366231,164.9,164.89,10.96771748]
[1754135527764,0.03,164.9,164.89,10.96771748]
[1754135529285,0.03,164.9,164.89,21.93543448]
[1754135530092,0.03,164.92,164.91,5.24]
[1754135530298,0.03,164.92,164.91,10.52771748]
[1754135530593,0.03,164.92,164.91,10.96771748]
[1754135530804,0.03,164.92,164.91,21.93543448]
[1754135536487,0.03,164.92,164.91,21.49543448]
[1754135537791,0.03,164.92,164.91,10.52771748]
[1754135537989,0.03,164.92,164.91,12.95925448]
[1754135538906,0.74,164.92,164.91,12.95925448]
[1754135539105,0.74,164.92,164.91,10.52771748]
[1754135541302,26.74,164.92,164.91,10.52771748]
[1754135542202,31.2628843,164.92,164.91,10.52771748]
[1754135543018,73.7628843,164.92,164.91,10.52771748]
[1754135544417,73.76347627,164.92,164.91,10.52771748]
[1754135544716,90.54816024,164.92,164.91,5.24]
[1754135547717,16.78468397,164.91,164.9,5.3]
[1754135547919,21.30816024,164.91,164.9,5.3]
[1754135548131,168.11816024,164.91,164.9,5.3]
[1754135548332,27.30587772,164.91,164.9,0.06]
[1754135549043,27.30587772,164.91,164.9,5.3]
[1754135549214,27.30587772,164.91,164.9,0.06]
[1754135550115,27.30587772,164.91,164.9,5.3]
[1754135550335,27.30587772,164.91,164.9,0.06]
[1754135550715,30.47223982,164.91,164.9,0.06]
[1754135555440,25.18452234,164.91,164.9,0.06]
[1754135555739,30.47223982,164.91,164.9,0.06]
[1754135557429,25.18452234,164.91,164.9,0.06]
[1754135557631,30.47223982,164.91,164.9,0.06]
[1754135557841,36.53615346,164.91,164.9,0.06]
[1754135558143,67.68452234,164.91,164.9,0.06]
[1754135558649,67.68452234,164.91,164.9,5.3]
[1754135559220,66.97452234,164.91,164.9,5.3]
[1754135559422,59.10657581,164.91,164.9,5.3]
[1754135559737,59.79657581,164.91,164.9,5.3]
[1754135561450,59.10657581,164.91,164.9,5.3]
[1754135561627,50.18983837,164.91,164.9,11.02771748]
[1754135561828,73.02347627,164.91,164.9,11.02771748]
[1754135563702,73.02347627,164.91,164.9,5.74]
[1754135563916,73.02347627,164.91,164.9,11.02771748]
[1754135565174,73.02347627,164.91,164.9,10.58771748]
[1754135567797,73.05347627,164.91,164.9,10.58771748]
[1754135568771,73.05347627,164.91,164.9,5.3]
[1754135568772,90.52816024,164.91,164.9,5.3]
[1754135570989,90.54054828,164.91,164.9,5.3]
[1754135573284,64.54054828,164.91,164.9,0.06]
[1754135573509,69.82823309,164.91,164.9,0.06]
[1754135573717,73.91062237,164.91,164.9,0.06]
[1754135575615,79.97453601,164.91,164.9,0.06]
[1754135575911,73.91062237,164.91,164.9,0.06]
[1754135576113,79.97453601,164.91,164.9,0.06]
[1754135576609,73.91146351,164.91,164.9,0.06]
[1754135577314,79.97537715,164.91,164.9,0.06]
[1754135577903,26.0,164.89,164.88,0.06]
[1754135578106,73.19146351,164.89,164.88,0.06]
[1754135578424,73.88146351,164.89,164.88,0.06]
[1754135578806,79.94611267,164.89,164.88,0.06]
[1754135581711,85.04385087,164.89,164.88,0.06]
[1754135582523,88.21142378,164.89,164.88,0.06]
[1754135582704,88.21142378,164.89,164.86,0.06]
[1754135582705,16.78468397,164.87,164.86,0.06]
[1754135582912,79.27684835,164.87,164.86,0.06]
[1754135583109,79.95684835,164.87,164.86,0.06]
[1754135583623,162.76468397,164.84,164.83,0.06]
[1754135583828,69.12907423,164.84,164.83,0.06]
[1754135584126,69.80907423,164.84,164.83,0.06]
[1754135585510,25.40339108,164.84,164.83,0.06]
[1754135585723,63.84135675,164.84,164.83,0.5]
[1754135585916,63.84135675,164.84,164.83,0.06]
[1754135587841,64.52135675,164.84,164.83,0.06]
[1754135588845,69.80907423,164.84,164.83,0.06]
[1754135589145,73.88983539,164.84,164.83,0.06]
[1754135589358,69.80907423,164.84,164.83,0.06]
[1754135592147,26.60907423,164.84,164.83,0.06]
[1754135592317,69.80907423,164.84,164.83,0.06]
[1754135593043,73.88807603,164.84,164.83,0.06]
[1754135595653,79.95456474,164.84,164.83,0.06]
[1754135598373,42.78468397,164.79,164.78,5.24]
[1754135598564,89.84135675,164.79,164.78,5.24]
[1754135601047,63.84135675,164.79,164.78,5.24]
[1754135601781,42.78468397,164.78,164.77,5.24]
[1754135601978,47.32135675,164.78,164.77,5.24]
[1754135603151,30.53667278,164.78,164.77,10.96771748]
[1754135604082,26.0,164.78,164.77,10.96771748]
[1754135604252,172.1,164.78,164.77,5.68]
[1754135604451,172.1,164.78,164.77,10.96771748]
[1754135605146,3.16817129,164.79,164.78,5.24]
[1754135605475,42.54,164.79,164.78,10.96771748]
[1754135607203,26.0,164.81,164.79,5.24]
[1754135607204,42.54,164.8,164.79,5.24]
[1754135607361,42.54,164.8,164.79,10.52771748]
[1754135607697,42.54,164.8,164.79,10.96771748]
[1754135609525,42.54,164.8,164.79,10.52771748]
[1754135609733,42.54,164.8,164.79,10.96771748]
[1754135610486,42.54,164.8,164.79,5.68]
[1754135610687,63.8516492,164.8,164.79,10.52771748]
[1754135610886,64.5316492,164.8,164.79,10.52771748]
[1754135611087,64.5316492,164.8,164.79,10.58771748]
[1754135611494,63.8516492,164.8,164.79,10.58771748]
[1754135611817,64.5316492,164.8,164.79,10.58771748]
[1754135613189,60.00468397,164.8,164.79,10.58771748]
[1754135613388,64.53694445,164.8,164.79,10.58771748]
[1754135614020,63.85694445,164.8,164.79,10.58771748]
[1754135614697,63.85694445,164.8,164.79,5.3]
[1754135614698,64.53694445,164.8,164.79,5.3]
[1754135619008,64.53694445,164.8,164.79,0.06]
[1754135619214,68.62663776,164.8,164.79,5.3]
[1754135619392,68.62663776,164.8,164.79,0.06]
[1754135619598,68.62663776,164.8,164.79,5.3]
[1754135620922,71.79485636,164.8,164.79,5.3]
[1754135621133,77.08257384,164.8,164.79,0.06]
[1754135623420,71.79485636,164.8,164.79,0.06]
[1754135623627,28.57485636,164.8,164.79,0.06]
[1754135623926,71.09485636,164.8,164.79,5.3]
[1754135624133,71.09485636,164.8,164.79,10.58771748]
[1754135624316,67.00516305,164.8,164.79,10.58771748]
[1754135624526,50.22047908,164.8,164.79,11.02771748]
[1754135624819,76.22047908,164.8,164.79,11.02771748]
[1754135625408,76.22047908,164.8,164.79,5.74]
[1754135625615,76.22047908,164.8,164.79,11.02771748]
[1754135626508,33.70047908,164.8,164.79,11.02771748]
[1754135626712,73.05226048,164.8,164.79,11.02771748]
[1754135627621,4.53226048,164.8,164.79,11.02771748]
[1754135630144,4.53226048,164.8,164.79,10.58771748]
[1754135631031,5.21226048,164.8,164.79,10.58771748]
[1754135632232,4.53226048,164.8,164.79,10.58771748]
[1754135632444,5.21226048,164.8,164.79,10.58771748]
[1754135633542,4.53226048,164.8,164.79,10.58771748]
[1754135633719,21.99694445,164.8,164.79,10.58771748]
[1754135634214,21.99694445,164.8,164.79,5.3]
[1754135634543,21.99694445,164.8,164.79,10.58771748]
[1754135635222,47.99694445,164.8,164.79,10.58771748]
[1754135636521,21.99694445,164.8,164.79,0.06]
[1754135637820,26.09191113,164.8,164.79,0.06]
[1754135640732,26.09191113,164.8,164.79,5.3]
[1754135640935,26.09191113,164.8,164.79,0.06]
[1754135641247,26.09191113,164.8,164.79,5.3]
[1754135642143,52.09191113,164.8,164.79,5.3]
[1754135642343,67.93191113,164.8,164.79,5.3]
[1754135642551,68.62191113,164.8,164.79,5.3]
[1754135643859,68.62191113,164.8,164.79,0.06]
[1754135644945,68.62191113,164.8,164.79,5.3]
[1754135646833,68.62191113,164.8,164.79,0.06]
[1754135647231,71.79002135,164.8,164.79,0.06]
[1754135655445,77.07773883,164.8,164.79,0.06]
[1754135655853,82.37773883,164.8,164.79,0.06]
[1754135656360,82.39600369,164.8,164.79,0.06]
[1754135656993,88.46396485,164.8,164.79,0.06]
[1754135657962,45.25396485,164.8,164.79,0.06]
[1754135658168,71.80828621,164.8,164.79,0.06]
[1754135658576,71.11828621,164.8,164.79,0.06]
[1754135659974,28.59828621,164.8,164.79,0.06]
[1754135660148,71.11828621,164.8,164.79,0.06]
[1754135660746,71.80828621,164.8,164.79,0.06]
[1754135661251,77.09600369,164.8,164.79,0.06]
[1754135661966,72.54547835,164.8,164.79,0.06]
[1754135662167,77.09482593,164.8,164.79,0.06]
[1754135662571,71.80710845,164.8,164.79,0.06]
[1754135662772,77.09482593,164.8,164.79,0.06]
[1754135663148,88.40278709,164.8,164.79,0.06]
[1754135664769,93.69050457,164.8,164.79,0.06]
[1754135665174,88.40278709,164.8,164.79,0.06]
[1754135666680,93.69050457,164.8,164.79,0.06]
[1754135666872,16.78468397,164.78,164.77,0.06]
[1754135667076,73.23671571,164.78,164.77,0.06]
[1754135667288,73.92671571,164.78,164.77,0.06]
[1754135667787,77.09574493,164.78,164.77,0.06]
[1754135670259,82.33574493,164.78,164.77,0.06]
[1754135670892,88.40444258,164.78,164.77,0.06]
[1754135672892,93.50963967,164.78,164.77,0.06]
[1754135675900,50.98963967,164.78,164.77,0.06]
[1754135676217,88.40444258,164.78,164.77,0.06]
[1754135676520,88.39932328,164.78,164.77,0.06]
[1754135678188,88.39421691,164.78,164.77,0.06]
[1754135685221,88.39508638,164.78,164.77,0.06]
[1754135687832,82.32638873,164.78,164.77,0.06]
[1754135688430,88.39508638,164.78,164.77,0.06]
[1754135691531,88.3963991,164.78,164.77,0.06]
[1754135691834,82.32770145,164.78,164.77,0.06]
[1754135692214,88.3963991,164.78,164.77,0.06]
[1754135693117,16.78468397,164.74,164.73,0.44]
[1754135693320,89.85109444,164.74,164.73,0.44]
[1754135693721,93.02063111,164.74,164.73,0.44]
[1754135697120,16.78468397,164.73,164.72,0.44]
[1754135697310,21.33109444,164.73,164.72,0.44]
[1754135700216,21.33109444,164.73,164.71,5.24]
[1754135700415,63.85109444,164.72,164.71,5.24]
[1754135700925,63.85109444,164.72,164.71,5.68]
[1754135702846,63.85109444,164.72,164.71,0.44]
[1754135703032,63.85109444,164.72,164.71,5.68]
[1754135703544,63.85109444,164.72,164.71,5.24]
[1754135703746,22.04109444,164.72,164.71,5.24]
[1754135703941,16.78468397,164.71,164.7,5.24]
[1754135704245,21.33109444,164.71,164.7,5.24]
[1754135706825,16.78468397,164.71,164.7,5.24]
[1754135707027,21.33922012,164.71,164.7,5.24]
[1754135707217,21.33922012,164.71,164.7,9.08527317]
[1754135707218,73.05453615,164.71,164.7,9.08527317]
[1754135713128,30.55453615,164.71,164.7,9.08527317]
[1754135713337,73.05453615,164.71,164.7,9.08527317]
[1754135714548,73.05453615,164.71,164.7,8.64527317]
[1754135715977,73.05453615,164.71,164.7,5.24]
[1754135716161,73.05453615,164.71,164.7,8.64527317]
[1754135716358,73.06015714,164.71,164.7,8.64527317]
[1754135719751,73.06015714,164.71,164.7,5.24]
[1754135719947,73.06015714,164.71,164.7,8.64527317]
[1754135720755,94.65942434,164.71,164.7,5.24]
[1754135720959,16.78468397,164.7,164.69,5.24]
[1754135721158,26.15942434,164.7,164.68,0.06]
[1754135721348,68.65942434,164.69,164.68,5.3]
[1754135721552,68.65942434,164.69,164.68,9.14527317]
[1754135721553,8.66474037,164.69,164.68,9.14527317]
[1754135721756,73.06015714,164.69,164.68,9.14527317]
[1754135722173,73.06015714,164.69,164.68,8.70527317]
[1754135722570,68.5,164.69,164.68,8.70527317]
[1754135723485,68.5,164.69,164.68,9.14527317]
[1754135724867,17.49468397,164.76,164.75,5.24]
[1754135725082,64.0739955,164.76,164.75,5.24]
[1754135725287,67.24306873,164.76,164.75,5.24]
[1754135725989,24.76306873,164.76,164.75,5.24]
[1754135726183,67.24306873,164.76,164.75,8.64527317]
[1754135726556,67.24306873,164.76,164.75,5.24]
[1754135726787,42.78468397,164.73,164.72,5.24]
[1754135726961,89.3639955,164.73,164.72,5.24]
[1754135727160,90.0739955,164.73,164.72,5.24]
[1754135730303,16.78468397,164.72,164.71,5.24]
[1754135730595,21.5939955,164.72,164.71,8.64527317]
[1754135731480,21.5939955,164.72,164.71,5.24]
[1754135734880,21.5939955,164.72,164.71,8.64527317]
[1754135735078,64.0739955,164.72,164.71,8.64527317]
[1754135735277,59.97468397,164.72,164.71,8.64527317]
[1754135737200,59.26468397,164.72,164.71,8.64527317]
[1754135738216,59.98468397,164.72,164.71,8.64527317]
[1754135741205,64.08340416,164.72,164.71,8.64527317]
[1754135741388,64.08340416,164.72,164.71,8.70527317]
[1754135743808,64.08340416,164.72,164.71,5.3]
[1754135744103,64.08340416,164.72,164.71,0.06]
[1754135745609,67.25356561,164.72,164.71,5.3]
[1754135746224,67.25356561,164.72,164.71,0.06]
[1754135746711,70.65883878,164.72,164.71,0.06]
[1754135747277,76.72974698,164.72,164.71,0.06]
[1754135747686,95.47965423,164.72,164.71,0.06]
[1754135748017,16.78468397,164.65,164.63,8.64527317]
[1754135748217,59.26468397,164.64,164.63,5.24]
[1754135748393,43.2,164.64,164.62,8.64527317]
[1754135748595,59.98468397,164.64,164.63,5.24]
[1754135749201,26.0,164.62,164.61,5.24]
[1754135749485,68.48,164.62,164.61,8.64527317]
[1754135749895,26.0,164.62,164.61,8.64527317]
[1754135750211,68.5,164.62,164.61,9.08527317]
[1754135751199,68.5,164.62,164.61,8.64527317]
[1754135752115,68.5,164.62,164.61,7.64527317]
[1754135752408,68.5,164.62,164.61,8.08527317]
[1754135752785,73.0449272,164.62,164.61,8.08527317]
[1754135753590,4.5449272,164.62,164.61,8.08527317]
[1754135754394,4.5436486,164.62,164.61,8.08527317]
[1754135755019,4.5436486,164.62,164.61,10.00419219]
[1754135755409,42.5,164.64,164.61,10.00419219]
[1754135755701,4.54246015,164.63,164.62,4.24]
[1754135756093,4.54246015,164.63,164.62,4.68]
[1754135756610,68.5,164.65,164.62,4.68]
[1754135756807,4.5421251,164.64,164.63,4.68]
[1754135757925,4.5421251,164.64,164.63,15.32838438]
[1754135759123,17.50468397,164.71,164.7,4.24]
[1754135759325,60.00468397,164.71,164.7,9.56419219]
[1754135759499,69.22,164.71,164.7,9.56419219]
[1754135760329,43.22,164.71,164.7,9.56419219]
[1754135760524,69.22,164.71,164.7,9.56419219]
[1754135760726,68.5,164.71,164.7,9.56419219]
[1754135761018,69.16,164.71,164.7,9.56419219]
[1754135761924,68.5,164.71,164.7,9.56419219]
[1754135762808,69.16,164.71,164.7,9.56419219]
[1754135764214,69.16,164.71,164.7,9.62419219]
[1754135764734,85.94468397,164.71,164.7,9.62419219]
[1754135767942,68.5,164.71,164.7,9.62419219]
[1754135768507,69.16,164.71,164.7,4.3]
[1754135768719,69.16,164.71,164.7,9.62419219]
[1754135770219,26.66,164.71,164.7,9.62419219]
[1754135770404,69.14,164.71,164.7,9.62419219]
[1754135771031,73.6835282,164.71,164.7,9.62419219]
[1754135773822,73.68363772,164.71,164.7,9.62419219]
[1754135776837,73.68363772,164.71,164.7,7.70474251]
[1754135779458,73.68393262,164.71,164.7,7.70474251]
[1754135780453,73.68393262,164.71,164.7,4.3]
[1754135780651,73.68393262,164.71,164.7,7.70474251]
[1754135788374,73.71393262,164.71,164.7,7.70474251]
[1754135790975,73.71392833,164.71,164.7,7.70474251]
[1754135791784,73.05392833,164.71,164.7,7.70474251]
[1754135792576,73.74392833,164.71,164.7,7.70474251]
[1754135793159,30.57392833,164.71,164.7,8.14474251]
[1754135793365,4.57392833,164.71,164.7,21.76371255]
[1754135793575,0.03,164.74,164.7,21.76371255]
[1754135793576,0.03,164.74,164.73,4.24]
[1754135793782,68.51,164.74,164.73,7.64474251]
[1754135797766,0.03,164.77,164.76,4.24]
[1754135798079,0.03,164.77,164.76,8.08474251]
[1754135800303,42.51,164.79,164.78,4.24]
[1754135800484,26.03,164.79,164.78,8.08474251]
[1754135800674,0.03,164.79,164.78,8.08474251]
[1754135800880,0.03,164.79,164.78,9.9925549]
[1754135802413,0.03,164.79,164.78,15.3051098]
[1754135807606,0.03,164.81,164.8,4.24]
[1754135807776,0.03,164.83,164.82,4.24]
[1754135807976,4.55819986,164.83,164.82,9.5525549]
[1754135808175,4.55819986,164.83,164.82,9.9925549]
[1754135809289,0.03,164.85,164.83,4.24]
[1754135809484,0.03,164.85,164.84,9.5525549]